bitfinex/quotes_SOLUSD_20240616
["timestamp","ask_amount","ask_price","bid_price","bid_amount"]
[1718514308288,5.72,143.4,143.35,0.68]
[1718514309509,25.7954,143.44,143.35,0.68]
[1718514309721,15.477,143.44,143.35,6.4]
[1718514309920,5.72,143.41,143.35,6.4]
[1718514311362,5.72,143.41,143.34,22.6893]
[1718514311651,5.72,143.37,143.34,22.6893]
[1718514312005,25.7991,143.42,143.34,22.6893]
[1718514312210,5.72,143.37,143.34,22.6893]
[1718514312510,5.72,143.38,143.34,22.6893]
[1718514312711,5.72,143.39,143.34,22.6893]
[1718514313729,30.6191,143.43,143.34,22.6893]
[1718514314031,5.72,143.39,143.34,22.6893]
[1718514315114,5.72,143.41,143.35,6.4]
[1718514315914,5.72,143.39,143.34,22.6893]
[1718514316115,10.32,143.41,143.34,22.6893]
[1718514316331,5.72,143.37,143.34,22.6893]
[1718514318623,5.72,143.38,143.34,22.6893]
[1718514319017,5.72,143.37,143.34,22.6893]
[1718514319352,5.72,143.36,143.34,16.0425]
[1718514320472,5.72,143.35,143.3,22.4336]
[1718514320778,5.72,143.34,143.3,22.4336]
[1718514321180,5.72,143.33,143.3,15.9464]
[1718514321785,5.72,143.34,143.3,15.9464]
[1718514326173,5.72,143.33,143.3,15.9464]
[1718514328698,5.72,143.34,143.3,15.9464]
[1718514329996,5.72,143.35,143.3,15.9464]
[1718514334669,5.72,143.34,143.3,15.9464]
[1718514334990,25.8057,143.38,143.3,15.9464]
[1718514335172,5.72,143.34,143.3,15.9464]
[1718514336487,0.51,143.39,143.3,15.9464]
[1718514336688,38.9761,143.41,143.31,11.8932]
[1718514336897,38.9761,143.41,143.32,5.72]
[1718514336898,5.72,143.38,143.32,5.72]
[1718514337391,5.72,143.38,143.31,6.1732]
[1718514337596,5.72,143.38,143.32,5.72]
[1718514337763,5.72,143.38,143.31,6.1732]
[1718514337966,5.72,143.38,143.32,5.72]
[1718514338492,5.1598,143.42,143.32,5.72]
[1718514338693,23.2186,143.42,143.33,6.23]
[1718514339014,5.72,143.39,143.33,6.23]
[1718514340601,5.72,143.37,143.31,6.1732]
[1718514340771,5.72,143.37,143.31,11.8932]
[1718514343299,5.72,143.37,143.31,6.1732]
[1718514343479,5.72,143.37,143.31,11.8932]
[1718514343676,5.72,143.37,143.31,6.0032]
[1718514343878,5.72,143.34,143.3,15.9464]
[1718514344083,2.5807,143.37,143.3,15.9464]
[1718514344084,5.72,143.33,143.3,15.9464]
[1718514344276,5.72,143.32,143.3,15.9464]
[1718514346869,5.72,143.33,143.3,15.9464]
[1718514355810,10.4925,143.38,143.3,15.9464]
[1718514355811,5.72,143.34,143.3,15.9464]
[1718514356119,5.72,143.36,143.3,21.6664]
[1718514356418,22.9118,143.39,143.3,21.6664]
[1718514356609,5.72,143.36,143.3,21.6664]
[1718514357007,5.72,143.36,143.31,0.17]
[1718514357215,5.72,143.36,143.31,0.51]
[1718514357407,5.72,143.37,143.31,6.23]
[1718514357600,2.5801,143.41,143.32,5.89]
[1718514357810,5.72,143.38,143.32,5.89]
[1718514358006,2.5801,143.41,143.32,5.89]
[1718514358241,5.72,143.38,143.32,5.89]
[1718514360296,5.72,143.38,143.33,6.1223]
[1718514360797,2.5802,143.4,143.33,6.1223]
[1718514360997,5.72,143.38,143.33,6.1223]
[1718514362897,23.2173,143.43,143.35,15.058]
[1718514363106,5.72,143.4,143.35,15.058]
[1718514365037,5.72,143.39,143.35,15.058]
[1718514365248,33.1988,143.43,143.35,15.058]
[1718514365249,5.72,143.38,143.35,15.058]
[1718514365419,5.72,143.36,143.35,15.058]
[1718514365931,5.72,143.37,143.35,15.058]
[1718514366530,7.7403,143.41,143.35,15.058]
[1718514366730,5.72,143.37,143.35,15.058]
[1718514366939,5.72,143.38,143.35,15.058]
[1718514370631,7.7397,143.42,143.35,15.058]
[1718514370832,5.72,143.39,143.35,15.058]
[1718514372918,7.7396,143.42,143.35,15.058]
[1718514373417,5.72,143.39,143.35,15.058]
[1718514373623,5.72,143.4,143.35,15.058]
[1718514374329,5.72,143.39,143.35,15.058]
[1718514375010,23.2175,143.43,143.35,15.058]
[1718514375208,25.7972,143.43,143.35,15.058]
[1718514375405,5.72,143.41,143.36,0.34]
[1718514375942,5.72,143.42,143.37,0.34]
[1718514376507,5.72,143.43,143.38,0.34]
[1718514377837,50.32084022,143.5,143.39,22.3043]
[1718514377838,5.158,143.47,143.39,22.3043]
[1718514378029,5.72,143.45,143.4,0.68]
[1718514378234,5.72,143.45,143.39,22.3043]
[1718514378235,5.72,143.43,143.39,22.3043]
[1718514378433,15.4748,143.46,143.39,22.3043]
[1718514378753,5.72,143.43,143.39,22.3043]
[1718514379224,5.72,143.44,143.39,22.3043]
[1718514379432,5.72,143.45,143.4,0.34]
[1718514380735,2.5788,143.48,143.4,0.34]
[1718514381045,5.72,143.45,143.4,0.34]
[1718514381752,5.72,143.44,143.4,0.34]
[1718514383733,15.7047,143.5,143.41,0.17]
[1718514383944,5.72,143.47,143.41,6.06]
[1718514384246,54.0552,143.5,143.41,6.06]
[1718514384418,5.72,143.47,143.41,6.06]
[1718514384620,5.72,143.46,143.41,0.34]
[1718514385047,54.0552,143.5,143.41,0.34]
[1718514385048,2.5786,143.49,143.42,0.17]
[1718514385249,5.72,143.46,143.42,0.51]
[1718514385623,2.5786,143.49,143.42,0.51]
[1718514385826,5.72,143.46,143.42,0.51]
[1718514386025,46.0858,143.5,143.42,0.51]
[1718514386026,2.5785,143.5,143.42,0.51]
[1718514386230,5.72,143.47,143.42,0.51]
[1718514388842,5.72,143.47,143.42,0.17]
[1718514389162,5.72,143.46,143.4,5.89]
[1718514389339,5.72,143.46,143.41,0.51]
[1718514391964,5.72,143.47,143.41,6.23]
[1718514393356,5.72,143.44,143.39,22.3043]
[1718514393661,5.1579,143.47,143.39,22.3043]
[1718514393662,5.72,143.43,143.39,22.3043]
[1718514394640,5.72,143.43,143.4,0.51]
[1718514395941,5.72,143.44,143.4,0.51]
[1718514397833,5.72,143.43,143.39,15.6851]
[1718514398952,5.72,143.44,143.39,15.6851]
[1718514400541,5.72,143.43,143.39,15.6851]
[1718514401235,5.72,143.42,143.39,15.6851]
[1718514405072,5.72,143.4,143.35,16.5844]
[1718514405361,5.72,143.39,143.35,16.5844]
[1718514405564,5.72,143.4,143.35,16.5844]
[1718514406346,7.908,143.45,143.35,22.3044]
[1718514406546,5.72,143.42,143.36,0.17]
[1718514407063,5.72,143.42,143.36,5.89]
[1718514407753,5.72,143.42,143.36,0.34]
[1718514408673,18.723,143.46,143.37,5.89]
[1718514408868,5.72,143.43,143.37,5.89]
[1718514412181,2.5789,143.47,143.38,5.89]
[1718514412387,2.5789,143.47,143.39,16.5844]
[1718514412561,5.72,143.45,143.39,22.4744]
[1718514416686,5.72,143.45,143.39,16.7544]
[1718514416878,5.72,143.44,143.39,16.7544]
[1718514420072,25.788,143.48,143.4,0.34]
[1718514420471,5.72,143.45,143.4,0.34]
[1718514420768,5.72,143.46,143.4,0.34]
[1718514422084,2.5785,143.49,143.41,0.17]
[1718514422384,5.72,143.47,143.41,5.89]
[1718514422561,5.72,143.47,143.42,0.17]
[1718514422763,5.72,143.47,143.42,6.2523]
[1718514424881,25.7858,143.49,143.42,6.2523]
[1718514427273,2.5787,143.48,143.42,6.2523]
[1718514427892,2.5789,143.47,143.42,6.0823]
[1718514428770,25.7879,143.48,143.42,6.0823]
[1718514428971,7.7364,143.48,143.42,6.0823]
[1718514429182,2.5789,143.47,143.42,6.0823]
[1718514429385,25.7877,143.48,143.42,6.0823]
[1718514430013,7.7364,143.48,143.42,6.0823]
[1718514430306,25.7865,143.49,143.42,6.0823]
[1718514430671,2.5787,143.48,143.42,6.0823]
[1718514431310,25.7865,143.49,143.42,6.0823]
[1718514431814,2.5787,143.48,143.42,6.0823]
[1718514431971,25.7865,143.49,143.42,6.0823]
[1718514432479,7.736,143.49,143.42,6.0823]
[1718514433091,15.4717,143.49,143.42,6.0823]
[1718514433315,7.736,143.49,143.42,6.0823]
[1718514435215,2.5787,143.49,143.42,6.0823]
[1718514435598,5.72,143.47,143.43,15.3511]
[1718514435911,5.72,143.48,143.43,15.3511]
[1718514437703,5.1562,143.52,143.44,0.17]
[1718514438022,5.72,143.49,143.44,0.68]
[1718514439314,3.3600597,143.53,143.44,0.68]
[1718514439596,5.72,143.5,143.44,0.68]
[1718514439827,16.2493597,143.53,143.44,0.68]
[1718514439828,5.72,143.51,143.45,5.72]
[1718514440004,5.72,143.51,143.46,0.17]
[1718514442499,8.5156597,143.53,143.46,0.17]
[1718514442699,3.3599597,143.53,143.46,0.17]
[1718514442899,5.72,143.51,143.46,0.17]
[1718514444199,3.3599597,143.53,143.46,0.17]
[1718514444522,5.72,143.51,143.46,0.17]
[1718514445108,0.7820597,143.53,143.46,0.17]
[1718514445311,5.72,143.51,143.46,0.17]
[1718514445923,0.7820597,143.53,143.46,0.17]
[1718514446135,5.72,143.51,143.46,0.17]
[1718514446531,5.72,143.51,143.47,15.3511]
[1718514446730,0.7820597,143.53,143.47,15.3511]
[1718514446937,5.72,143.52,143.47,15.3511]
[1718514447938,0.7820597,143.53,143.48,0.34]
[1718514448149,6.5020597,143.53,143.49,0.34]
[1718514450534,6.5020597,143.53,143.49,0.17]
[1718514450733,5.72,143.52,143.49,0.17]
[1718514451040,5.72,143.52,143.48,0.34]
[1718514452226,5.72,143.52,143.48,0.17]
[1718514452629,5.72,143.52,143.48,0.51]
[1718514459259,0.7820597,143.53,143.48,0.51]
[1718514459260,0.7820597,143.53,143.49,0.17]
[1718514459473,0.7820597,143.53,143.49,0.51]
[1718514463033,0.7820597,143.53,143.5,0.17]
[1718514463237,0.7820597,143.53,143.5,0.51]
[1718514463659,0.7820597,143.53,143.51,0.17]
[1718514463870,0.7820597,143.53,143.51,0.51]
[1718514464860,0.7820597,143.53,143.51,16.8519]
[1718514468799,0.7820597,143.53,143.51,16.6819]
[1718514468963,0.7820597,143.53,143.51,16.5119]
[1718514481194,0.7820597,143.53,143.48,5.65104915]
[1718514481496,5.72,143.51,143.47,15.6501]
[1718514482674,5.72,143.51,143.48,0.51]
[1718514485068,5.72,143.51,143.47,15.6501]
[1718514485272,5.72,143.49,143.43,15.6501]
[1718514485699,5.72,143.49,143.43,26.88217055]
[1718514486684,5.72,143.49,143.44,0.17]
[1718514487002,5.72,143.49,143.44,0.68]
[1718514488777,5.72,143.48,143.44,0.68]
[1718514490596,5.72,143.49,143.44,100.68]
[1718514490793,5.72,143.5,143.44,106.4]
[1718514491105,0.7820597,143.53,143.44,106.4]
[1718514491306,5.72,143.5,143.44,106.4]
[1718514491875,0.7820597,143.53,143.44,121.61]
[1718514492085,0.7820597,143.53,143.47,0.17]
[1718514492288,6.5020597,143.53,143.47,6.4]
[1718514495406,0.7820597,143.53,143.47,6.4]
[1718514495701,0.7820597,143.53,143.49,5.89]
[1718514495901,0.7820597,143.53,143.49,0.17]
[1718514496078,0.7820597,143.53,143.49,0.51]
[1718514497001,6.5020597,143.53,143.49,0.51]
[1718514497504,5.72,143.51,143.48,16.5992]
[1718514499103,0.7820597,143.53,143.48,16.5992]
[1718514499305,5.72,143.52,143.48,16.5992]
[1718514499994,0.7820597,143.53,143.48,16.5992]
[1718514500238,5.72,143.52,143.48,16.5992]
[1718514502686,5.72,143.52,143.44,120.93]
[1718514502687,5.72,143.5,143.44,16.5992]
[1718514503023,5.72,143.49,143.44,16.5992]
[1718514504520,5.72,143.49,143.45,0.34]
[1718514506111,5.72,143.51,143.46,0.34]
[1718514506495,0.7820597,143.53,143.47,5.72]
[1718514506715,6.5020597,143.53,143.48,0.34]
[1718514510012,6.5020597,143.53,143.49,0.34]
[1718514512218,5.72,143.52,143.49,0.34]
[1718514512897,6.5020597,143.53,143.49,0.34]
[1718514515834,6.5020597,143.53,143.44,116.5992]
[1718514515835,0.7820597,143.53,143.44,116.5992]
[1718514516027,5.72,143.49,143.44,16.5992]
[1718514518527,5.72,143.49,143.45,0.34]
[1718514518734,5.72,143.49,143.45,0.68]
[1718514519829,5.72,143.5,143.45,0.68]
[1718514531949,3.3598597,143.53,143.45,0.68]
[1718514531950,0.7820597,143.53,143.45,0.68]
[1718514532144,5.72,143.5,143.45,0.68]
[1718514532719,5.72,143.51,143.45,6.4]
[1718514536452,5.72,143.5,143.45,0.68]
[1718514537655,5.72,143.51,143.45,0.68]
[1718514537856,0.7820597,143.53,143.45,0.68]
[1718514538057,0.7820597,143.53,143.47,0.17]
[1718514538250,6.5020597,143.53,143.47,0.68]
[1718514540643,6.5020597,143.53,143.47,6.4]
[1718514541354,0.7820597,143.53,143.47,6.4]
[1718514541569,0.7820597,143.53,143.49,0.17]
[1718514541754,0.7820597,143.53,143.49,0.68]
[1718514545456,0.7820597,143.53,143.49,0.51]
[1718514545663,5.72,143.52,143.49,0.17]
[1718514545953,0.7820597,143.53,143.48,16.2706]
[1718514545954,5.72,143.51,143.48,16.2706]
[1718514547747,5.72,143.52,143.48,16.2706]
[1718514548456,5.72,143.51,143.48,16.2706]
[1718514554549,0.7820597,143.53,143.48,16.2706]
[1718514554745,5.72,143.51,143.48,16.2706]
[1718514556776,0.7820597,143.53,143.48,16.2706]
[1718514556942,5.72,143.51,143.48,16.2706]
[1718514558866,5.72,143.49,143.44,115.8841]
[1718514559965,5.72,143.49,143.45,0.34]
[1718514564271,0.7820597,143.53,143.45,6.06]
[1718514564566,5.72,143.51,143.46,0.51]
[1718514565362,0.7820597,143.53,143.46,0.51]
[1718514565363,5.72,143.5,143.46,0.51]
[1718514571789,5.72,143.49,143.44,15.8841]
[1718514572087,5.72,143.47,143.44,15.8841]
[1718514573184,5.72,143.5,143.44,15.8841]
[1718514573358,5.72,143.46,143.44,15.8841]
[1718514576077,5.72,143.46,143.42,5.48932478]
[1718514576285,5.72,143.45,143.41,0.68]
[1718514577092,5.72,143.5,143.41,0.68]
[1718514577395,8.5993,143.52,143.43,5.89]
[1718514577396,5.72,143.49,143.43,5.89]
[1718514577600,5.72,143.49,143.44,0.51]
[1718514578458,5.72,143.48,143.44,0.51]
[1718514579189,5.72,143.48,143.41,100.0]
[1718514579496,5.72,143.46,143.42,0.17]
[1718514579667,22.88,143.5,143.43,0.17]
[1718514579866,8.5993,143.52,143.43,0.34]
[1718514579867,5.72,143.47,143.43,0.34]
[1718514580065,5.72,143.48,143.44,0.17]
[1718514581471,5.72,143.47,143.44,0.17]
[1718514581867,5.72,143.47,143.42,0.17]
[1718514582086,5.72,143.46,143.41,0.51]
[1718514582392,5.72,143.46,143.42,0.17]
[1718514583764,5.72,143.45,143.42,0.17]
[1718514586699,5.72,143.46,143.42,0.17]
[1718514588904,22.88,143.5,143.42,0.17]
[1718514589699,25.4584,143.5,143.42,0.17]
[1718514590800,30.6152,143.5,143.42,0.17]
[1718514591012,5.72,143.44,143.4,22.6131]
[1718514591181,5.72,143.43,143.4,16.5993]
[1718514591501,5.72,143.44,143.4,16.5993]
[1718514591678,5.72,143.43,143.4,16.5993]
[1718514594699,18.5271,143.49,143.4,16.5993]
[1718514594700,5.72,143.44,143.4,16.5993]
[1718514597000,5.72,143.43,143.4,16.5993]
[1718514598085,5.72,143.44,143.4,16.5993]
[1718514598591,21.8655,143.52,143.42,105.89]
[1718514598907,5.72,143.49,143.44,0.17]
[1718514599076,5.72,143.5,143.44,5.89]
[1718514599398,5.72,143.5,143.45,0.51]
[1718514600288,5.72,143.5,143.45,0.17]
[1718514600495,5.72,143.5,143.44,5.89]
[1718514600673,15.8443,143.52,143.44,0.17]
[1718514600873,5.72,143.48,143.43,0.51]
[1718514601079,5.72,143.47,143.42,0.17]
[1718514601278,5.72,143.47,143.42,0.68]
[1718514601474,5.72,143.48,143.42,0.68]
[1718514601708,15.8443,143.52,143.42,0.68]
[1718514601886,5.72,143.48,143.42,0.68]
[1718514603098,5.72,143.46,143.42,0.68]
[1718514603475,5.72,143.47,143.42,0.68]
[1718514603897,22.88,143.5,143.42,0.68]
[1718514604206,5.72,143.47,143.42,0.68]
[1718514607707,5.72,143.46,143.41,6.1267]
[1718514607907,5.72,143.45,143.41,6.1267]
[1718514610013,32.71565427,143.5,143.41,6.1267]
[1718514610205,5.72,143.45,143.41,6.1267]
[1718514611610,5.72,143.45,143.4,16.5993]
[1718514611814,5.72,143.42,143.4,16.5993]
[1718514612310,5.72,143.41,143.38,0.4883]
[1718514612486,5.72,143.4,143.38,0.4883]
[1718514614005,5.72,143.39,143.38,0.4883]
[1718514617931,12.98271305,143.39,143.38,0.4883]
[1718514619550,7.26271305,143.39,143.38,0.4883]
[1718514619698,12.98271305,143.39,143.38,0.4883]
[1718514620799,7.26271305,143.39,143.38,0.4883]
[1718514621101,12.98271305,143.39,143.38,0.4883]
[1718514622821,7.26271305,143.39,143.38,0.4883]
[1718514623028,12.98271305,143.39,143.38,0.4883]
[1718514624214,7.26271305,143.39,143.38,0.4883]
[1718514624430,12.98271305,143.39,143.38,0.4883]
[1718514627009,7.26271305,143.39,143.38,0.4883]
[1718514627216,2.58,143.41,143.38,0.4883]
[1718514627406,5.72,143.39,143.38,0.4883]
[1718514637837,12.98186111,143.39,143.38,0.4883]
[1718514642446,7.26186111,143.39,143.38,0.4883]
[1718514642624,12.98186111,143.39,143.38,0.4883]
[1718514644456,7.26186111,143.39,143.38,0.4883]
[1718514644636,12.98186111,143.39,143.38,0.4883]
[1718514658529,20.72286111,143.39,143.38,0.4883]
[1718514658766,15.56216111,143.39,143.38,0.4883]
[1718514659334,12.98186111,143.39,143.38,0.4883]
[1718514659546,15.56216111,143.39,143.38,0.4883]
[1718514659748,20.72286111,143.39,143.38,0.4883]
[1718514660350,12.98186111,143.39,143.38,0.4883]
[1718514661563,15.56216111,143.39,143.38,0.4883]
[1718514664074,12.98186111,143.39,143.38,0.4883]
[1718514667455,5.72,143.39,143.38,0.4883]
[1718514678069,12.98053039,143.39,143.38,0.4883]
[1718514681088,22.46009061,143.43,143.38,0.4883]
[1718514681390,5.72,143.39,143.38,3.0687]
[1718514681574,5.72,143.39,143.38,8.2298]
[1718514681958,2.58,143.41,143.38,8.2298]
[1718514681959,7.74,143.41,143.38,8.2298]
[1718514682398,5.72,143.39,143.38,8.2298]
[1718514682569,5.72,143.39,143.38,15.9714]
[1718514682890,5.72,143.39,143.38,26.2936]
[1718514684282,38.02038324,143.43,143.4,15.4807]
[1718514684480,5.72,143.41,143.4,25.8014]
[1718514684892,5.72,143.41,143.4,18.0609]
[1718514685679,5.72,143.41,143.4,7.7402]
[1718514685977,5.72,143.41,143.4,2.58]
[1718514687265,5.72,143.41,143.39,25.8025]
[1718514687503,5.72,143.4,143.39,2.5802]
[1718514691112,5.72,143.4,143.39,25.8035]
[1718514691885,5.72,143.4,143.39,7.7409]
[1718514692397,5.72,143.4,143.39,2.5802]
[1718514693196,5.72,143.4,143.39,7.7409]
[1718514693407,5.72,143.4,143.39,2.5802]
[1718514699191,5.72,143.4,143.39,7.7409]
[1718514699374,5.72,143.4,143.39,15.482]
[1718514700379,7.7395,143.42,143.39,7.7409]
[1718514700579,5.72,143.4,143.39,7.7409]
[1718514701889,5.72,143.4,143.39,2.5802]
[1718514703932,5.72,143.4,143.38,0.4883]
[1718514704099,31.5236,143.39,143.38,0.4883]
[1718514705196,13.461,143.39,143.38,0.4883]
[1718514705607,21.2021,143.39,143.38,0.4883]
[1718514705814,31.5236,143.39,143.38,0.4883]
[1718514706311,23.7825,143.39,143.38,0.4883]
[1718514706523,13.461,143.39,143.38,0.4883]
[1718514706813,8.3003,143.39,143.38,0.4883]
[1718514707305,5.72,143.39,143.38,3.0688]
[1718514707791,5.72,143.39,143.38,8.2299]
[1718514707997,5.72,143.39,143.38,26.2937]
[1718514708702,5.72,143.39,143.38,8.2299]
[1718514709303,5.72,143.39,143.38,0.4883]
[1718514711630,5.72,143.39,143.38,3.0688]
[1718514714395,5.72,143.39,143.38,0.4883]
[1718514715322,5.72,143.39,143.38,3.0688]
[1718514719922,5.72,143.39,143.38,8.2299]
[1718514720524,5.72,143.39,143.38,3.0688]
[1718514722601,8.3003,143.39,143.38,0.4883]
[1718514723524,5.72,143.39,143.38,0.4883]
[1718514725505,5.72,143.39,143.38,3.0688]
[1718514725706,5.72,143.39,143.38,0.4883]
[1718514726724,5.72,143.39,143.38,3.0688]
[1718514727941,5.72,143.39,143.38,0.4883]
[1718514728297,14.1903,143.39,143.38,0.4883]
[1718514728502,21.45140888,143.39,143.36,15.4852]
[1718514728705,11.44,143.37,143.36,15.4852]
[1718514730351,11.44,143.37,143.36,25.8088]
[1718514732442,5.72,143.37,143.36,25.8088]
[1718514734745,7.26110888,143.39,143.37,7.7418]
[1718514734928,7.26110888,143.39,143.37,15.4839]
[1718514734929,5.72,143.38,143.37,15.4839]
[1718514735646,5.72,143.38,143.37,7.7418]
[1718514736247,7.26110888,143.39,143.38,2.5805]
[1718514736420,7.26110888,143.39,143.38,7.7416]
[1718514736421,5.72,143.39,143.38,7.7416]
[1718514737249,5.72,143.39,143.37,25.8058]
[1718514737449,5.72,143.38,143.37,25.8058]
[1718514738128,5.72,143.38,143.37,7.7417]
[1718514747257,5.72,143.38,143.37,2.5805]
[1718514748656,5.72,143.38,143.37,15.4841]
[1718514748958,5.72,143.38,143.37,7.7419]
[1718514749858,5.72,143.38,143.37,2.5805]
[1718514755144,2.5802,143.4,143.37,15.4841]
[1718514755349,5.72,143.38,143.37,15.4841]
[1718514755865,5.72,143.38,143.37,25.807]
[1718514760478,5.72,143.38,143.37,7.7419]
[1718514760768,5.72,143.38,143.36,25.8079]
[1718514760968,5.72,143.37,143.36,25.8079]
[1718514761662,5.72,143.37,143.35,25.8097]
[1718514761863,5.72,143.36,143.35,7.7428]
[1718514762365,5.72,143.36,143.35,2.5809]
[1718514762547,5.72,143.36,143.35,7.743]
[1718514762948,5.72,143.36,143.35,15.4862]
[1718514763764,5.72,143.36,143.35,25.8105]
[1718514787073,14.0209,143.36,143.29,16.0911]
[1718514787283,2.5811,143.35,143.32,23.234]
[1718514787587,25.461,143.36,143.33,7.7442]
[1718514787763,5.72,143.34,143.33,15.4885]
[1718514788458,5.72,143.34,143.33,25.8143]
[1718514794278,5.72,143.34,143.29,16.0911]
[1718514794279,13.44651359,143.38,143.35,2.581]
[1718514794478,5.72,143.36,143.35,15.4863]
[1718514795063,5.72,143.36,143.35,7.7431]
[1718514795571,5.72,143.36,143.35,2.581]
[1718514796373,5.72,143.36,143.34,25.8116]
[1718514797797,5.72,143.36,143.35,2.581]
[1718514798203,5.72,143.36,143.34,25.8116]
[1718514798501,5.72,143.36,143.34,7.7434]
[1718514799301,5.72,143.36,143.34,2.5811]
[1718514801097,8.3009,143.36,143.34,2.5811]
[1718514801511,7.26393028,143.37,143.35,2.581]
[1718514801801,5.72,143.36,143.35,2.581]
[1718514802000,7.21871567,143.42,143.36,2.5808]
[1718514802001,30.4871994,143.39,143.36,2.5808]
[1718514802180,7.7414,143.39,143.36,7.7426]
[1718514802516,5.72,143.37,143.35,7.7428]
[1718514802709,5.72,143.36,143.35,7.7428]
[1718514803575,5.72,143.36,143.35,15.486]
[1718514804025,5.72,143.36,143.35,25.8103]
[1718514813824,5.72,143.36,143.35,7.7428]
[1718514814117,5.72,143.36,143.35,15.486]
[1718514815197,5.72,143.36,143.35,25.8103]
[1718514816224,5.72,143.36,143.35,7.7428]
[1718514817017,5.72,143.36,143.35,25.8103]
[1718514817331,11.44,143.36,143.29,16.0911]
[1718514817535,11.44,143.36,143.34,15.4872]
[1718514817700,5.72,143.35,143.34,15.4872]
[1718514818799,7.7423,143.37,143.34,7.7435]
[1718514819136,5.72,143.35,143.34,7.7435]
[1718514819728,5.72,143.35,143.34,15.4873]
[1718514819909,5.72,143.35,143.34,2.5811]
[1718514820100,5.72,143.35,143.34,7.7436]
[1718514820288,5.72,143.35,143.34,2.5811]
[1718514821108,5.72,143.35,143.34,7.7436]
[1718514822298,5.72,143.35,143.34,2.5811]
[1718514825426,5.72,143.35,143.34,2.5812]
[1718514827707,5.72,143.35,143.33,2.5814]
[1718514827912,5.72,143.34,143.33,2.5814]
[1718514828716,5.72,143.34,143.33,7.7443]
[1718514828898,5.72,143.34,143.33,15.4886]
[1718514830699,5.72,143.34,143.33,25.8144]
[1718514833816,7.26172816,143.36,143.35,25.8106]
[1718514834148,2.5804,143.39,143.36,23.2279]
[1718514834303,5.72,143.37,143.36,7.7426]
[1718514834710,5.72,143.37,143.36,2.5809]
[1718514835619,5.72,143.37,143.35,7.7428]
[1718514835819,5.72,143.36,143.35,7.7428]
[1718514837243,5.72,143.36,143.35,2.5809]
[1718514837534,5.72,143.36,143.34,7.7434]
[1718514837721,5.72,143.35,143.34,7.7434]
[1718514838212,5.72,143.35,143.34,2.5811]
[1718514839633,5.72,143.35,143.34,7.7436]
[1718514840427,5.72,143.35,143.34,15.4874]
[1718514840633,5.72,143.35,143.34,25.8125]
[1718514847547,5.72,143.35,143.34,7.7436]
[1718514849440,5.72,143.35,143.34,15.4874]